Cogmind - Beta 16 @@@ ROGUE MODE // 2025.10.27 @ 21:10:56 Player: GiggleBox Result: Destroyed by Striker with Plasma Lance Performance ------------- Evolutions (5) 2500 Regions Visited (18) 3600 Robots Destroyed (225) 1125 Value Destroyed (7783) 7783 Prototype IDs (49) 980 Alien Tech Used (0) 0 Bonus (6413) 6413 TOTAL SCORE: 22401 Bonus ------- High Alert Combat Kills 115 Follower Combat Kills 506 Entered Garrisons 200 Aligned with FarCom 300 Acquired ECA 300 Met Warlord at Base 500 MAIN.C Attacked Warlord 500 Warlord Defense Kills 4124 Friendly Fire -132 Cogmind --------- Core Integrity 0/1000 Matter 137/300 Energy 100/100 System Corruption 16% Temperature Cool (0) Movement Core (900) Ox17 Location -5/Warlord Parts ------- > --- POWER (2) -------- (None) > --- PROPULSION (4) --- (None) > --- UTILITY (7) ------ High-capacity Storage Unit Advanced Targeting Computer Sensor Drone Bay (1/20) > --- WEAPON (4) ------- (None) > --- INVENTORY (20) --- High-capacity Matter Pod (200) Improved Remote Force Field Katana Peak State ------------ > --- POWER ------------ Antimatter Reactor Antimatter Reactor > --- PROPULSION ------- Heavy Treads Heavy Treads > --- UTILITY ---------- Improved Cooling System High-capacity Storage Unit Advanced Targeting Computer Core Analyzer Hardened Medium Armor Plating Improved Remote Force Field High-powered Tractor Beam > --- WEAPON ----------- Enhanced Autogun Enhanced Autogun Enhanced Autogun Field Lobotomy Kit > --- INVENTORY -------- Heavy Treads Heavy Treads High-capacity Matter Pod Weapon Cycler Improved Light Armor Plating EM Disruption Field Sensor Drone Bay Vortex Cannon Enhanced Autogun Enhanced Autogun Gauss Rifle Gauss Rifle Gauss Rifle Gauss Rifle Advanced Assault Cannon Improved Grenade Launcher RU-N14's Throwing Claymores v3 Katana [Rating: 94] Favorites ----------- Power Heavy Ion Engine Engine Heavy Ion Engine Power Core Micro Fission Core Reactor Antimatter Reactor Propulsion Light Treads Treads Light Treads Utility High-capacity Storage Unit Device Improved Cooling System Storage High-capacity Storage Unit Processor Advanced Targeting Computer Protection Hardened Medium Armor Plating Weapon Enhanced Autogun Energy Gun EM Shotgun Energy Cannon Vortex Cannon Ballistic Gun Enhanced Autogun Ballistic Cannon Light Cannon Launcher Rocket Launcher Special Weapon Field Lobotomy Kit Impact Weapon Mace Slashing Weapon Katana Build | -11 -10 -10 -9 -9 -9 -8 -8 -7 -7 -7 -7 -7 -5 -5 -5 -5 -5 -5 ------- Run | Yrd Mat Min Mat Min Exi Min Mat Fac Sto Gar Rec Scr Fac Was Fac Upp Upp War Slots Evolved 10 | . . . 2 . . . 2 2 . . . . 4 . . . . . Power 1 | . . . . . . . . . . . . . 1 . . . . . Propulsion 2 | . . . 1 . . . . 1 . . . . . . . . . . Utility 5 | . . . . . . . 1 1 . . . . 3 . . . . . Weapon 2 | . . . 1 . . . 1 . . . . . . . . . . . Parts Attached 114 | 10 8 7 24 4 . . 13 9 . 5 3 . 6 6 2 2 2 13 Power 14 | 2 . 1 5 . . . . 1 . . 1 . 1 2 . . . 1 Engine 10 | 2 . 1 4 . . . . 1 . . 1 . 1 . . . . . Core 2 | . . . 1 . . . . . . . . . . . . . . 1 Reactor 2 | . . . . . . . . . . . . . . 2 . . . . Propulsion 28 | 2 1 . 8 1 . . 5 2 . 3 . . 1 2 . . . 3 Treads 28 | 2 1 . 8 1 . . 5 2 . 3 . . 1 2 . . . 3 Leg . | . . . . . . . . . . . . . . . . . . . Wheel . | . . . . . . . . . . . . . . . . . . . Hover . | . . . . . . . . . . . . . . . . . . . Flight . | . . . . . . . . . . . . . . . . . . . Utility 34 | 4 2 1 6 2 . . 2 5 . 1 1 . 3 2 2 1 1 1 Device 16 | 3 . 1 1 1 . . . 2 . 1 . . 1 2 1 1 1 1 Storage 4 | 1 1 . 2 . . . . . . . . . . . . . . . Processor 4 | . . . . . . . 2 . . . . . 1 . 1 . . . Hackware . | . . . . . . . . . . . . . . . . . . . Protection 10 | . 1 . 3 1 . . . 3 . . 1 . 1 . . . . . Artifact . | . . . . . . . . . . . . . . . . . . . Weapon 38 | 2 5 5 5 1 . . 6 1 . 1 1 . 1 . . 1 1 8 Energy Gun 10 | 2 5 3 . . . . . . . . . . . . . . . . Energy Cannon 1 | . . . . . . . . . . . . . . . . . . 1 Ballistic Gun 18 | . . . 3 1 . . 5 1 . 1 1 . . . . . 1 5 Ballistic Cannon 2 | . . 1 . . . . . . . . . . . . . 1 . . Launcher 2 | . . 1 . . . . . . . . . . 1 . . . . . Special Weapon 2 | . . . . . . . . . . . . . . . . . . 2 Impact Weapon 2 | . . . 2 . . . . . . . . . . . . . . . Slashing Weapon 1 | . . . . . . . 1 . . . . . . . . . . . Piercing Weapon . | . . . . . . . . . . . . . . . . . . . Special Melee Weapon . | . . . . . . . . . . . . . . . . . . . Unidentified Prototypes 6 | . . . 1 1 . . 1 . . . . . . . 1 . . 2 Parts Lost 38 | . 1 1 4 . . . . . . 1 4 . . . . . . 27 Power 5 | . . 1 . . . . . . . . 1 . . . . . . 3 Propulsion 9 | . 1 . 2 . . . . . . . 1 . . . . . . 5 Utility 10 | . . . 2 . . . . . . . 1 . . . . . . 7 Weapon 14 | . . . . . . . . . . 1 1 . . . . . . 12 Highest Loss Streak 21 | . 1 1 2 . . . . . . 1 4 . . . . . . 21 To Critical Strikes . | . . . . . . . . . . . . . . . . . . . Average Backups 17 | 1 11 14 16 20 20 20 19 19 20 19 17 18 16 18 17 17 16 15 Power . | . 1 1 1 1 1 1 1 1 1 1 . 1 . . . . . . Propulsion 2 | . . . 3 4 4 4 3 2 2 2 2 2 2 2 2 2 2 1 Utility 6 | . 5 8 6 6 7 6 6 7 7 7 6 7 4 5 5 4 4 3 Weapon 7 | . 3 4 6 7 7 7 7 8 9 8 7 7 8 9 9 9 8 8 Tool/Special . | . . . . . . . . . . . . . . . . . . . Unused Backups 24 | . 4 1 6 . 1 . 6 1 . . . . . 1 1 1 . 2 Power . | . . . . . . . . . . . . . . . . . . . Propulsion 4 | . . . 3 . . . . . . . . . . 1 . . . . Utility 8 | . 1 1 2 . . . 1 . . . . . . . 1 1 . 1 Weapon 11 | . 3 . 1 . 1 . 5 1 . . . . . . . . . . Tool/Special 1 | . . . . . . . . . . . . . . . . . . 1 Average Slot Usage (%) 97 | . 99 100 99 99 100 100 99 99 100 99 100 100 99 90 88 88 88 84 Engine 8 | . 14 14 11 11 11 11 9 7 7 7 7 7 11 2 . . . . Reactor 1 | . . . . . . . . . . . . . . 8 11 11 11 9 Treads 26 | . 27 28 32 32 33 33 26 30 30 30 30 30 23 13 11 11 11 10 Device 6 | . 13 14 1 . . . . 6 7 9 7 7 10 15 12 16 12 11 Storage 9 | . 14 14 11 11 11 11 9 7 7 7 7 7 5 5 5 5 5 5 Processor 4 | . . . . . . . 8 7 7 7 7 7 10 11 11 11 11 11 Protection 7 | . . . 9 11 11 11 9 7 7 5 6 7 10 6 9 5 9 9 Energy Gun 4 | . 28 25 5 . . . . . . . . . . . . . . . Ballistic Gun 24 | . . . 27 32 33 33 35 30 30 29 30 30 23 23 23 22 23 21 Peak Build Rating 94 | 9 9 12 24 29 26 26 37 47 44 44 43 42 61 86 92 89 86 94 Average Rating 37 | 5 8 11 20 25 25 26 34 43 44 43 41 41 56 81 85 86 84 80 On Entrance 41 | . 7 9 11 24 26 26 26 37 44 44 43 41 42 61 86 86 85 84 Avg Prop Armor Cover (%) 7 | . . . 7 . . . . . . . . . . . . . . 14 Naked Turns . | . . . . . . . . . . . . . . . . . . . Heaviest Build 115 | 13 30 33 65 65 65 65 68 84 71 71 72 72 86 96 98 109 98 115 Greatest Support 140 | 40 40 40 63 63 63 63 63 83 83 83 83 80 87 140 140 140 140 140 Greatest Overweight (x) 19 | . . . 2 1 1 1 1 1 . . . . 1 . . . . 19 Average Overweight (x) . | . . . . 1 1 1 1 . . . . . . . . . . . Largest Inventory Capacity 20 | 8 15 15 20 20 20 20 20 20 20 20 20 20 20 20 20 20 20 20 Average Capacity 18 | 7 14 15 18 20 20 20 20 20 20 20 20 20 20 20 20 20 20 20 Most Carried 20 | 4 15 15 20 20 20 20 20 20 20 20 20 19 18 20 20 20 20 20 Average Carried 17 | 1 11 14 16 19 19 19 19 19 20 19 17 18 16 19 19 19 19 17 Final Capacity 20 | 8 15 15 20 20 20 20 20 20 20 20 20 20 20 20 20 20 20 20 Final Carried 20 | 3 15 15 20 20 20 20 20 20 20 20 18 19 18 20 20 20 19 3 Class Distribution -------------------- 26% | Skirmisher 23% | Tank 15% | Mutant 13% | Scavenger-Tank 6% | Commander-Gunner 5% | Scavenger-Gunner 4% | Scavenger-Skirmisher Dominant Class ---------------- Mutant | -10/Materials Mutant | -10/Mines Tank | -9/Materials Tank | -9/Mines Tank | -9/Exiles Skirmisher | -8/Mines Skirmisher | -8/Materials Skirmisher | -7/Factory Skirmisher | -7/Storage Skirmisher | -7/Garrison Scavenger-Skirmisher | -7/Recycling Commander-Gunner | -7/Scraptown Scavenger-Gunner | -5/Factory Scavenger-Tank | -5/Waste Scavenger-Tank | -5/Factory Scavenger-Gunner | -5/Upper Caves Scavenger-Tank | -5/Upper Caves Scavenger-Tank | -5/Warlord Resources | -11 -10 -10 -9 -9 -9 -8 -8 -7 -7 -7 -7 -7 -5 -5 -5 -5 -5 -5 ----------- Run | Yrd Mat Min Mat Min Exi Min Mat Fac Sto Gar Rec Scr Fac Was Fac Upp Upp War Matter Collected 7147 | 300 238 186 839 285 . 79 1206 478 . 766 344 7 34 547 . 213 160 1465 Remotely 1927 | 101 . . . . . . . . . 298 . . . 259 . 34 51 1184 Salvage Created 9742 | 150 597 138 1902 227 . 195 1868 556 . 946 418 . . 934 . 304 56 1451 Parts 488 | 10 58 10 119 3 . 10 102 23 . 53 15 . . 17 . 10 4 54 Haulers Intercepted 13 | . 2 . 6 . . . 5 . . . . . . . . . . . Recyclers Shooed 11 | 1 1 . 4 2 . 1 2 . . . . . . . . . . . Parts Field Recycled . | . . . . . . . . . . . . . . . . . . . Retrieved Matter . | . . . . . . . . . . . . . . . . . . . Parts Self-Destructed 14 | . . . . . . . . . . . . . . . . 10 4 . Prevented 2 | . . . . . . . . . . . . . . . . . 2 . Parts Restored . | . . . . . . . . . . . . . . . . . . . Kills | -11 -10 -10 -9 -9 -9 -8 -8 -7 -7 -7 -7 -7 -5 -5 -5 -5 -5 -5 ------- Run | Yrd Mat Min Mat Min Exi Min Mat Fac Sto Gar Rec Scr Fac Was Fac Upp Upp War Combat Hostiles Destroyed 174 | . 17 7 34 8 . 5 29 4 . 23 7 . . 3 . 3 1 33 Guns 163 | . 17 4 33 8 . 5 29 4 . 23 7 . . 3 . 3 1 26 Cannons 2 | . . . . . . . . . . . . . . . . . . 2 AOE 8 | . . 2 1 . . . . . . . . . . . . . . 5 Classes Destroyed 21 | 2 5 . 4 1 . 1 1 1 . . . . . 1 . . . 5 Worker 7 | . . . 1 1 . 1 3 1 . . . . . . . . . . Builder 3 | . 1 . 2 . . . . . . . . . . . . . . . Tunneler 6 | 3 1 . . . . 1 1 . . . . . . . . . . . Hauler 13 | . 2 . 6 . . . 5 . . . . . . . . . . . Recycler 10 | 1 . . 2 1 . . 3 3 . . . . . . . . . . Operator 3 | . . . 1 . . . 2 . . . . . . . . . . . Watcher 12 | . 3 . 4 . . . 3 2 . . . . . . . . . . Swarmer 50 | . 9 5 11 . . 2 8 . . 11 . . . . . . . 4 Grunt 55 | . 8 2 13 2 . 2 12 . . 4 1 . . . . 2 . 9 Brawler 5 | . . . . . . . 1 . . . . . . . . . . 4 Duelist 10 | . . . 1 . . . 2 . . 4 1 . . . . 1 . 1 Protector 3 | . . . . . . . . . . . . . . . . . . 3 Sentry 26 | . . . 9 . . . 6 2 . 2 4 . . 1 . 2 . . Demolisher 1 | . . . . . . . . . . . . . . . . . . 1 Specialist 1 | . . . . . . . . . . . . . . . . . . 1 Hunter 3 | . . . . . . 1 . 1 . 1 . . . . . . . . Programmer 10 | . . . . . . . . 1 . 1 1 . . . . . 1 6 Compactor 3 | . . . . . . . . . . . . . . 3 . . . . Striker 1 | . . . . . . . . . . . . . . . . . . 1 Executioner 2 | . . . . . . . . . . . . . . . . . . 2 Assembled 6 | . . . . 6 . . . . . . . . . . . . . . Thug 1 | . . . . . . . . . . . . . . . . . . 1 Best Kill Streak 12 | 2 5 3 8 3 . 2 8 3 . 12 3 . . 2 . 3 1 12 Combat Bots Only 12 | . 5 3 7 2 . 2 7 1 . 12 3 . . 2 . 3 1 12 Max Kills in Single Turn 3 | 1 1 1 3 2 . 2 3 1 . 3 1 . . 1 . 3 1 3 Gunslinging 2 | . . . 1 1 . 1 2 . . 2 . . . . . . . 1 Exploded 3 | . . 1 1 . . . . . . . . . . . . . . 3 Melee . | . . . . . . . . . . . . . . . . . . . Uniques/NPCs Destroyed . | . . . . . . . . . . . . . . . . . . . Combat | -11 -10 -10 -9 -9 -9 -8 -8 -7 -7 -7 -7 -7 -5 -5 -5 -5 -5 -5 -------- Run | Yrd Mat Min Mat Min Exi Min Mat Fac Sto Gar Rec Scr Fac Was Fac Upp Upp War Hostile Shots Fired 979 | . 82 47 104 25 . 13 63 34 . 94 99 . . . . 3 2 413 Missed 298 | . 18 11 33 5 . 6 13 13 . 28 39 . . . . 1 1 130 Hits 681 | . 64 36 71 20 . 7 50 21 . 66 60 . . . . 2 1 283 Melee 14 | . . . . 1 . . 1 . . 1 . . . . . . . 11 Projectile 667 | . 64 36 71 19 . 7 49 21 . 65 60 . . . . 2 1 272 AOE 6 | . . . . 5 . . . . . . . . . . . . . 1 Critical Strikes 22 | . 1 1 2 . . . 3 . . 1 1 . . . . . . 13 Part Disruptions 2 | . . . . . . . . . . . . . . . . . . 2 Damage Taken 10504 | . 599 409 912 425 . 89 680 148 . 899 505 . 18 . . 37 20 5763 Core 1469 | . 81 57 139 64 . . 22 5 . 56 15 . . . . 18 . 1012 Absorbed by Shields 188 | . . . . . . . . . . 11 . . . . . . . 177 Redirected to Shielding 6 | . 6 . . . . . . . . . . . . . . . . . Regen/Repaired (Parts) 479 | . 172 . 79 . . . 129 . . . . . . . . . . 99 Core Remaining (%) 75 | 100 . 44 . . . 49 96 . . . . 89 . . . . . . Volleys Fired 490 | 7 62 18 76 24 . 9 71 20 . 42 19 . 1 27 . 9 2 103 Largest 4 | 2 2 2 3 3 . 3 4 4 . 4 4 . 1 4 . 4 4 4 Hottest 155 | 80 80 100 155 69 . 69 100 100 . 100 100 . 36 100 . 100 100 109 Shots Fired 1545 | 14 125 34 223 72 . 27 284 80 . 158 76 . 1 107 . 29 8 307 Gun 1510 | 14 125 31 223 72 . 27 284 80 . 158 76 . . 107 . 26 8 279 Cannon 20 | . . . . . . . . . . . . . . . . 3 . 17 Launcher 6 | . . 3 . . . . . . . . . . 1 . . . . 2 Special 9 | . . . . . . . . . . . . . . . . . . 9 Kinetic 1308 | . . . 180 72 . 27 284 80 . 158 76 . . 107 . 29 8 287 Thermal 173 | 14 125 21 13 . . . . . . . . . . . . . . . Explosive 10 | . . 3 . . . . . . . . . . 1 . . . . 6 Electromagnetic 40 | . . 10 30 . . . . . . . . . . . . . . . Entropic 9 | . . . . . . . . . . . . . . . . . . 9 Robot Hit Streak 36 | 4 11 6 22 9 . 12 19 13 . 36 28 . . 25 . 7 6 23 Robot Miss Streak 5 | 1 3 3 3 3 . 3 5 3 . 3 2 . . 2 . 2 1 4 Penetration Max 1 | . . . . . . . . . . . . . . . . . . 1 Secondary Targets 43 | . 4 1 7 1 . 1 5 . . 8 2 . . 1 . 1 . 12 Max Gunslinging Chain 3 | . 1 1 1 1 . 1 2 . . 3 1 . . 1 . 1 . 2 Shots Hit Robots 1042 | 10 79 24 154 45 . 19 169 42 . 112 57 . . 90 . 18 5 218 Core Hits 459 | 5 39 11 72 20 . 11 78 20 . 49 17 . . 24 . 10 3 100 Critical Kills 4 | . . . 1 . . 1 . . . . . . . . . . . 2 Critical Parts Destroyed 6 | . . . . 1 . . 1 1 . . . . . . . . . 3 Critical Strikes 16 | . . . 1 1 . 1 1 1 . . 1 . . 1 . . . 9 Destroy 12 | . . . 1 1 . 1 1 1 . . 1 . . 1 . . . 5 Blast 1 | . . . . . . . . . . . . . . . . . . 1 Sever 1 | . . . . . . . . . . . . . . . . . . 1 Sunder 2 | . . . . . . . . . . . . . . . . . . 2 Melee Attacks 9 | . . . 7 1 . . 1 . . . . . . . . . . . Impact 8 | . . . 7 1 . . . . . . . . . . . . . . Slashing 1 | . . . . . . . 1 . . . . . . . . . . . Piercing . | . . . . . . . . . . . . . . . . . . . Sneak Attacks . | . . . . . . . . . . . . . . . . . . . Combat Hostiles . | . . . . . . . . . . . . . . . . . . . Follow-up Attacks . | . . . . . . . . . . . . . . . . . . . Damage Inflicted 20082 | 108 947 458 2595 767 . 362 3278 764 . 1822 1008 . . 1666 1 330 100 5876 Guns 17385 | 108 911 272 2378 709 . 288 3224 685 . 1822 1004 . . 1666 . 330 100 3888 Cannons 635 | . . . . . . . . . . . . . . . . . . 635 Explosions 1549 | . . 160 138 . . . . . . . . . . . . . . 1251 Melee . | . . . . . . . . . . . . . . . . . . . Ramming 411 | . 36 26 79 58 . 74 54 79 . . 4 . . . 1 . . . Kinetic 15793 | . . . 1935 709 . 288 3224 685 . 1822 1004 . . 1666 . 330 100 4030 Thermal 1430 | 108 911 194 217 . . . . . . . . . . . . . . . Explosive 1411 | . . 160 . . . . . . . . . . . . . . . 1251 Electromagnetic 442 | . . 78 364 . . . . . . . . . . . . . . . Impact . | . . . . . . . . . . . . . . . . . . . Slashing 102 | . . . . . . . . . . . . . . . . . . 102 Piercing . | . . . . . . . . . . . . . . . . . . . Entropic 493 | . . . . . . . . . . . . . . . . . . 493 Highest Corruption 19 | . 1 1 . . . . . . . 1 1 . . 19 19 18 14 16 Average Corruption 4 | . 1 1 . . . . . . . 1 1 . . 13 18 14 10 4 Corruption Purged 9 | . . . . . . . . . . . . . . . 1 4 4 . Corruption Blocked . | . . . . . . . . . . . . . . . . . . . Effects 101 | . 10 5 . . . . . . . 6 9 . . 9 15 17 19 11 Message Errors 21 | . 2 1 . . . . . . . . 3 . . 3 3 3 5 1 Matter Fused 23 | . 3 . . . . . . . . 2 1 . . 1 4 4 5 3 Heat Flow Errors 10 | . . 1 . . . . . . . 1 . . . 1 1 3 3 . Energy Discharges 15 | . 3 . . . . . . . . . 2 . . . 2 5 3 . Parts Rejected 1 | . . . . . . . . . . . . . . . . . . 1 Parts Fused 1 | . . . . . . . . . . . . . . . . . 1 . Data Loss (minor) 12 | . 1 1 . . . . . . . 1 3 . . 3 2 . 1 . Data Loss (major) 7 | . . 1 . . . . . . . . . . . . 3 . 1 2 Misfires 6 | . 1 1 . . . . . . . . . . . . . 2 . 2 Alerts 1 | . . . . . . . . . . 1 . . . . . . . . Weapon Failures 4 | . . . . . . . . . . 1 . . . 1 . . . 2 Overload Shots . | . . . . . . . . . . . . . . . . . . . Overflow Damage 49 | . . 4 15 . . . . . . . . . . . . . . 30 Projectiles 28 | . . . . . . . . . . . . . . . . . . 28 Explosions 15 | . . 4 9 . . . . . . . . . . . . . . 2 Melee 6 | . . . 6 . . . . . . . . . . . . . . . Knockbacks 8 | . 1 . . 1 . . 3 . . . . . . . . . . 3 Impact 5 | . 1 . . 1 . . 3 . . . . . . . . . . . Kinetic 3 | . . . . . . . . . . . . . . . . . . 3 Secondary . | . . . . . . . . . . . . . . . . . . . Self-Inflicted Damage 175 | . . 43 57 . . . . . . . . . . . . . . 75 Shots 7 | . . 2 3 . . . . . . . . . . . . . . 2 Rammed 65 | . 10 6 13 9 . 10 9 6 . . 1 . . . 1 . . . Targets Rammed 69 | . 12 6 13 9 . 12 9 6 . . 1 . . . 1 . . . Kicked . | . . . . . . . . . . . . . . . . . . . Crushed 4 | . 2 . . . . 2 . . . . . . . . . . . . Highest Temperature 394 | 72 206 268 158 84 . 63 394 212 . 132 126 . . 349 117 227 157 306 Average Temperature 72 | 28 68 93 32 26 . 19 104 77 . 56 52 . . 132 61 89 71 115 Received Heat Transfer 1667 | . 150 123 327 12 . 9 297 18 . 120 174 . . . . 18 . 419 Effects 7 | . . . . . . . 4 . . . . . . 1 . . . 2 Energy Bleed 2 | . . . . . . . 1 . . . . . . 1 . . . . Interference 2 | . . . . . . . . . . . . . . . . . . 2 Matter Decay 1 | . . . . . . . 1 . . . . . . . . . . . Damage (minor) 2 | . . . . . . . 2 . . . . . . . . . . . Siege Activations . | . . . . . . . . . . . . . . . . . . . Martial Activations . | . . . . . . . . . . . . . . . . . . . Shielding Activations . | . . . . . . . . . . . . . . . . . . . Robots Disrupted 1 | . . . 1 . . . . . . . . . . . . . . . Combat Hostiles 1 | . . . 1 . . . . . . . . . . . . . . . Robots Corrupted 1 | . . . 1 . . . . . . . . . . . . . . . Combat Hostiles . | . . . . . . . . . . . . . . . . . . . Parts Fried 2 | . . . 2 . . . . . . . . . . . . . . . Impact Corruptions 1 | . . . 1 . . . . . . . . . . . . . . . Robots Melted 1 | . . 1 . . . . . . . . . . . . . . . . Combat Hostiles 1 | . . 1 . . . . . . . . . . . . . . . . Parts Melted 8 | 1 2 3 . 1 . . . . . . . . . . . . . 1 Heat Transferred 3165 | 250 1975 555 385 . . . . . . . . . . . . . . . Parts Sabotaged . | . . . . . . . . . . . . . . . . . . . Parts Stolen . | . . . . . . . . . . . . . . . . . . . Parts Stripped . | . . . . . . . . . . . . . . . . . . . Power Chain Reactions 3 | . . . 3 . . . . . . . . . . . . . . . Alert | -11 -10 -10 -9 -9 -9 -8 -8 -7 -7 -7 -7 -7 -5 -5 -5 -5 -5 -5 ------- Run | Yrd Mat Min Mat Min Exi Min Mat Fac Sto Gar Rec Scr Fac Was Fac Upp Upp War Maximum Alert Level 2 | . . . 2 . . . 2 . . 2 1 . . . . . . . Low Security (%) 67 | 100 100 100 27 100 . 100 39 100 100 26 42 . 100 100 100 . . . Level 1 25 | . . . 66 . . . 43 . . 6 57 . . . . . . . Level 2 7 | . . . 6 . . . 17 . . 66 . . . . . . . . Level 3 . | . . . . . . . . . . . . . . . . . . . Level 4 . | . . . . . . . . . . . . . . . . . . . Level 5 . | . . . . . . . . . . . . . . . . . . . High Security . | . . . . . . . . . . . . . . . . . . . Max Security . | . . . . . . . . . . . . . . . . . . . Peak Influence 632 | 5 157 75 413 74 . 74 451 195 4 632 314 . 41 . 29 . . . Initial 284 | . . . . 43 . . . 195 . 2 284 . . . . . . . Average 133 | 1 64 14 240 8 . 9 198 49 . 402 216 . 5 . 5 . . . Influence Increases 5222 | 20 523 194 1085 85 . 186 864 203 14 640 304 . 51 . 54 98 30 871 Destroy 0b10 Robot/C 3460 | . 340 140 680 60 . 140 580 80 . 460 140 . 20 . . 80 20 720 Destroy 0b10 Robot/NC 290 | 20 35 . 80 10 . 10 85 30 . . . . . . . . . 20 Destroy Leader 590 | . 80 20 200 10 . 30 146 44 . 30 . . 10 . . 10 10 . Allied During Kill 100 | . . . . 4 . 6 . . . . . . 11 . . 8 . 71 Successful Hack 206 | . 23 . 52 . . . 16 33 14 . 14 . . . 54 . . . Select Force Hacks 150 | . . . . . . . . . . . 150 . . . . . . . Disable Machine 60 | . . . 30 . . . 15 15 . . . . . . . . . . Anti-Garrison Action 150 | . . . . . . . . . . 150 . . . . . . . . Destroy Structure 51 | . . 19 13 1 . . 7 1 . . . . 10 . . . . . Lose Combat Pursuer 165 | . 45 15 30 . . . 15 . . . . . . . . . . 60 Influence Decreases 4809 | 20 523 194 972 198 . 186 434 633 10 12 846 90 51 . 54 98 30 458 Entered New Map 745 | . . . . 70 . . . 235 . 2 348 90 . . . . . . Time Decay 3234 | 20 513 194 622 128 . 166 434 398 10 . 458 . 51 . 54 68 30 88 Lost Part 370 | . 10 . 40 . . . . . . 10 40 . . . . . . 270 Lost Ally 160 | . . . 10 . . 20 . . . . . . . . . 30 . 100 Purge Threat 300 | . . . 300 . . . . . . . . . . . . . . . Squads Dispatched 19 | . 4 . 4 1 . . 8 2 . . . . . . . . . . Investigation 6 | . 3 . 2 1 . . . . . . . . . . . . . . Extermination 1 | . . . . . . . . 1 . . . . . . . . . . Reinforcement 5 | . 1 . 2 . . . 1 1 . . . . . . . . . . Assault 1 | . . . . . . . 1 . . . . . . . . . . . Garrison 6 | . . . . . . . 6 . . . . . . . . . . . Intercept . | . . . . . . . . . . . . . . . . . . . Searches Triggered . | . . . . . . . . . . . . . . . . . . . Construction Impeded 1 | . . . . . . . 1 . . . . . . . . . . . Haulers Reinforced . | . . . . . . . . . . . . . . . . . . . Active Scanning Responses . | . . . . . . . . . . . . . . . . . . . Cargo Convoy Interrupts . | . . . . . . . . . . . . . . . . . . . Stealth | -11 -10 -10 -9 -9 -9 -8 -8 -7 -7 -7 -7 -7 -5 -5 -5 -5 -5 -5 --------- Run | Yrd Mat Min Mat Min Exi Min Mat Fac Sto Gar Rec Scr Fac Was Fac Upp Upp War Distress Signals 12 | . 4 . 4 . . . 3 . . . . . . . . . . 1 Communications Jammed . | . . . . . . . . . . . . . . . . . . . Distress Signals . | . . . . . . . . . . . . . . . . . . . Times Spotted 255 | . 27 8 50 20 . 7 41 7 . 23 7 . 1 6 . 4 1 53 Peak Tracking Total 12 | . 5 3 5 4 . 3 4 2 . 8 3 . 1 3 . 4 1 12 Tactical Retreats 11 | . 2 1 2 3 . . 1 . . . . . . . . . . 2 Traps | -11 -10 -10 -9 -9 -9 -8 -8 -7 -7 -7 -7 -7 -5 -5 -5 -5 -5 -5 ------- Run | Yrd Mat Min Mat Min Exi Min Mat Fac Sto Gar Rec Scr Fac Was Fac Upp Upp War Traps Triggered 7 | . 3 . 1 . . . . . . 2 . . 1 . . . . . Indirectly . | . . . . . . . . . . . . . . . . . . . Trap Hack Attempts . | . . . . . . . . . . . . . . . . . . . Triggered . | . . . . . . . . . . . . . . . . . . . Disarmed . | . . . . . . . . . . . . . . . . . . . Reprogrammed . | . . . . . . . . . . . . . . . . . . . Reused 1 | . . . . . . . . . . . . . . . . . . 1 Traps Extracted . | . . . . . . . . . . . . . . . . . . . Installed 3 | . . 1 . . . . . . . . . . . . . . 1 1 Triggered 1 | . . . . . . . . . . . . . . . . . . 1 Most Traps Carried 1 | . . . . . . . . . . . . . . . . 1 1 1 Machines | -11 -10 -10 -9 -9 -9 -8 -8 -7 -7 -7 -7 -7 -5 -5 -5 -5 -5 -5 ---------- Run | Yrd Mat Min Mat Min Exi Min Mat Fac Sto Gar Rec Scr Fac Was Fac Upp Upp War Machines Disabled 9 | . . . 3 . . . 1 1 . 3 . . . . . . . 1 Max in Single Turn 1 | . . . 1 . . . 1 1 . 1 . . . . . . . 1 Garrison Relay 3 | . . . . . . . . . . 3 . . . . . . . . Machines Repaired . | . . . . . . . . . . . . . . . . . . . Machines Dismantled . | . . . . . . . . . . . . . . . . . . . Machines Sabotaged . | . . . . . . . . . . . . . . . . . . . Overloaded Fab Kills . | . . . . . . . . . . . . . . . . . . . Hacking | -11 -10 -10 -9 -9 -9 -8 -8 -7 -7 -7 -7 -7 -5 -5 -5 -5 -5 -5 --------- Run | Yrd Mat Min Mat Min Exi Min Mat Fac Sto Gar Rec Scr Fac Was Fac Upp Upp War Machines Accessed 65 | . 8 . 14 2 2 . 10 5 2 2 9 2 . . 5 . . 4 Terminals 38 | . 7 . 10 . . . 8 3 . 2 4 . . . 4 . . . Fabricators . | . . . . . . . . . . . . . . . . . . . Repair Stations 5 | . 1 . 2 . . . 1 . 1 . . . . . . . . . Recycling Units 6 | . . . . . . . 1 . . . 5 . . . . . . . Scanalyzers 5 | . . . 2 . . . . 2 . . . . . . 1 . . . Garrison Access 1 | . . . . . . . . . 1 . . . . . . . . . Total Hacks 179 | . 29 . 61 2 2 . 24 16 3 3 14 6 . . 8 . . 11 Successful 103 | . 17 . 35 2 2 . 12 6 1 . 7 6 . . 4 . . 11 Failed 75 | . 12 . 25 . . . 12 10 2 3 7 . . . 4 . . . Catastrophic 13 | . 1 . 3 . . . 1 3 . . 3 . . . 2 . . . Database Lockouts 1 | . . . 1 . . . . . . . . . . . . . . . Manual 75 | . 20 . 24 . 1 . 12 2 . . 12 . . . 4 . . . Terminals 118 | . 25 . 48 . . . 19 11 . 3 6 . . . 6 . . . Fabricators . | . . . . . . . . . . . . . . . . . . . Repair Stations 15 | . 4 . 7 . . . 2 . 2 . . . . . . . . . Recycling Units 11 | . . . . . . . 3 . . . 8 . . . . . . . Scanalyzers 13 | . . . 6 . . . . 5 . . . . . . 2 . . . Garrison Access 1 | . . . . . . . . . 1 . . . . . . . . . Terminal Hacks 53 | . 4 . 19 2 2 . 2 5 . . 1 6 . . 1 . . 11 Record 17 | . . . 3 . 1 . . 2 . . . 6 . . . . . 5 Robot Analysis 2 | . 1 . 1 . . . . . . . . . . . . . . . Prototype ID Bank 11 | . 1 . 2 . . . 1 1 . . . . . . 1 . . 5 Open Door 3 | . . . . 2 . . . . . . . . . . . . . 1 Branch Access Points 2 | . . . 1 . . . . 1 . . . . . . . . . . Emergency Access Points 1 | . . . 1 . . . . . . . . . . . . . . . Terminal Index 1 | . . . 1 . . . . . . . . . . . . . . . Alert Level 5 | . . . 3 . . . 1 . . . 1 . . . . . . . Unreport Threat 2 | . . . 2 . . . . . . . . . . . . . . . Locate Traps 5 | . 2 . 2 . . . . 1 . . . . . . . . . . Registered Components 1 | . . . 1 . . . . . . . . . . . . . . . Zone Layout 2 | . . . 2 . . . . . . . . . . . . . . . Proto ID Catalog 1 | . . . . . 1 . . . . . . . . . . . . . Fabricator Hacks . | . . . . . . . . . . . . . . . . . . . Repair Station Hacks 9 | . 4 . 3 . . . 2 . . . . . . . . . . . Scan Component 5 | . 2 . 2 . . . 1 . . . . . . . . . . . Repair 4 | . 2 . 1 . . . 1 . . . . . . . . . . . Recycling Unit Hacks 2 | . . . . . . . 2 . . . . . . . . . . . Retrieve Matter 1 | . . . . . . . 1 . . . . . . . . . . . Retrieve Components 1 | . . . . . . . 1 . . . . . . . . . . . Scanalyzer 4 | . . . 2 . . . . 1 . . . . . . 1 . . . Insert Component 1 | . . . 1 . . . . . . . . . . . . . . . Retrieve Study 3 | . . . 1 . . . . 1 . . . . . . 1 . . . Garrison Access Hacks 1 | . . . . . . . . . 1 . . . . . . . . . Unlock Access 1 | . . . . . . . . . 1 . . . . . . . . . Unauthorized Hacks 34 | . 9 . 11 . . . 6 . . . 6 . . . 2 . . . Terminals 28 | . 9 . 10 . . . 6 . . . 1 . . . 2 . . . Assimilate 1 | . . . 1 . . . . . . . . . . . . . . . Botnet 11 | . 3 . 3 . . . 2 . . . 1 . . . 2 . . . Disrupt 1 | . . . . . . . 1 . . . . . . . . . . . Operators 1 | . 1 . . . . . . . . . . . . . . . . . Skim 14 | . 5 . 6 . . . 3 . . . . . . . . . . . Fabricators . | . . . . . . . . . . . . . . . . . . . Repair Stations 1 | . . . 1 . . . . . . . . . . . . . . . Patch 1 | . . . 1 . . . . . . . . . . . . . . . Recycling Units 5 | . . . . . . . . . . . 5 . . . . . . . Tunnel 5 | . . . . . . . . . . . 5 . . . . . . . Scanalyzers . | . . . . . . . . . . . . . . . . . . . Garrison Access . | . . . . . . . . . . . . . . . . . . . Data Cores Recovered 2 | . . . . . . . 2 . . . . . . . . . . . Used 1 | . . . . . . . 1 . . . . . . . . . . . Hacking Detections 48 | . 8 . 12 . . . 10 5 1 2 5 . . . 5 . . . Full Trace Events 3 | . 2 . 1 . . . . . . . . . . . . . . . Feedback Events 1 | . 1 . . . . . . . . . . . . . . . . . Corruption 1 | . 1 . . . . . . . . . . . . . . . . . Feedback Blocked . | . . . . . . . . . . . . . . . . . . . Robot Schematics Acquired . | . . . . . . . . . . . . . . . . . . . Robots Built . | . . . . . . . . . . . . . . . . . . . Authchips . | . . . . . . . . . . . . . . . . . . . Time . | . . . . . . . . . . . . . . . . . . . Total Robot Build Rating . | . . . . . . . . . . . . . . . . . . . Part Schematics Acquired . | . . . . . . . . . . . . . . . . . . . Parts Built . | . . . . . . . . . . . . . . . . . . . Authchips . | . . . . . . . . . . . . . . . . . . . Time . | . . . . . . . . . . . . . . . . . . . Total Part Build Rating . | . . . . . . . . . . . . . . . . . . . Part Studies Acquired 3 | . . . 1 . . . . 1 . . . . . . 1 . . . Parts Repaired 4 | . 2 . 1 . . . 1 . . . . . . . . . . . Time 220 | . 52 . 136 . . . 32 . . . . . . . . . . . Parts Recycled . | . . . . . . . . . . . . . . . . . . . Recycled Matter . | . . . . . . . . . . . . . . . . . . . Retrieved Matter . | . . . . . . . . . . . . . . . . . . . Retrieved Components 3 | . . . . . . . 3 . . . . . . . . . . . Parts Scanalyzed 1 | . . . 1 . . . . . . . . . . . . . . . Part Schematics Acquired . | . . . . . . . . . . . . . . . . . . . Parts Damaged 1 | . . . 1 . . . . . . . . . . . . . . . Bothacking | -11 -10 -10 -9 -9 -9 -8 -8 -7 -7 -7 -7 -7 -5 -5 -5 -5 -5 -5 ------------ Run | Yrd Mat Min Mat Min Exi Min Mat Fac Sto Gar Rec Scr Fac Was Fac Upp Upp War Used RIF Installer . | . . . . . . . . . . . . . . . . . . . Robots Hacked . | . . . . . . . . . . . . . . . . . . . Non-combat . | . . . . . . . . . . . . . . . . . . . Combat . | . . . . . . . . . . . . . . . . . . . Robot Hacks Applied . | . . . . . . . . . . . . . . . . . . . Relay Couplers Released 13 | . . . . . . . . . . 13 . . . . . . . . Machine Destruction 13 | . . . . . . . . . . 13 . . . . . . . . Fabnet Peak Effective % . | . . . . . . . . . . . . . . . . . . . Robots Rewired 6 | . . . . . . . . . . . 6 . . . . . . . Allies Hacked . | . . . . . . . . . . . . . . . . . . . Hacks Repelled . | . . . . . . . . . . . . . . . . . . . Allies | -11 -10 -10 -9 -9 -9 -8 -8 -7 -7 -7 -7 -7 -5 -5 -5 -5 -5 -5 -------- Run | Yrd Mat Min Mat Min Exi Min Mat Fac Sto Gar Rec Scr Fac Was Fac Upp Upp War Total Allies 15 | . . . 1 4 . . . . . . 6 . . . . . . 4 Largest Group 6 | . . . 1 3 2 1 . . . . 6 6 6 3 3 3 1 1 Highest-Rated Group 137 | . . . 10 47 47 16 . . . . 137 137 137 72 72 72 8 119 Highest-Rated Ally 119 | . . . 10 31 31 16 . . . . 32 32 32 32 32 32 8 119 Initial Warlord ECA Mod 3 | . . . . . . . . . . . 3 3 1 1 1 1 1 1 Total Orders 3 | . . . . . . . . 1 . . . . . . . 2 . . EXPLORE 3 | . . . . . . . . 1 . . . . . . . 2 . . Ally Attacks 124 | . . . . 42 . 13 . . . . . . 10 38 . 4 . 17 Total Damage 2692 | . . . . 403 . 121 . . . . . . 227 878 . 174 . 889 Kills 22 | . . . . 8 . 2 . . . . . . 1 3 . 1 . 7 Allies Corrupted . | . . . . . . . . . . . . . . . . . . . Allies Melted 2 | . . . . . . . . . . . . . . . . . . 2 Field Lobotomies 4 | . . . . . . . . . . . . . . . . . . 4 Intel | -11 -10 -10 -9 -9 -9 -8 -8 -7 -7 -7 -7 -7 -5 -5 -5 -5 -5 -5 ------- Run | Yrd Mat Min Mat Min Exi Min Mat Fac Sto Gar Rec Scr Fac Was Fac Upp Upp War Active Infowar (turns) 2607 | 37 1535 863 172 . . . . . . . . . . . . . . . Terrain 11 | 11 . . . . . . . . . . . . . . . . . . Seismic 2596 | 26 1535 863 172 . . . . . . . . . . . . . . . Robot Analysis Total 2 | . 1 . 1 . . . . . . . . . . . . . . . Derelict Logs Recovered 4 | . . 1 . 1 . . . . . . . . . . . 1 1 . Drone Launches 21 | . . . . . . . . 1 . . . . . . . 4 . 16 Drone Recoveries 2 | . . . . . . . . 1 . . . . . . . 1 . . Exploration | -11 -10 -10 -9 -9 -9 -8 -8 -7 -7 -7 -7 -7 -5 -5 -5 -5 -5 -5 ------------- Run | Yrd Mat Min Mat Min Exi Min Mat Fac Sto Gar Rec Scr Fac Was Fac Upp Upp War Turns Passed 17954 | 197 1585 916 3038 1397 471 1027 1632 1143 40 827 1159 1203 244 189 320 498 486 1582 Spaces Moved 8917 | 100 782 524 1304 595 218 447 616 658 26 454 649 742 123 79 187 293 295 825 Core 5 | 3 . . . . . . . . . . . . . . . . . 2 Treads 8912 | 97 782 524 1304 595 218 447 616 658 26 454 649 742 123 79 187 293 295 823 Legs . | . . . . . . . . . . . . . . . . . . . Wheels . | . . . . . . . . . . . . . . . . . . . Hover . | . . . . . . . . . . . . . . . . . . . Flight . | . . . . . . . . . . . . . . . . . . . Fastest Speed 50 | 50 160 160 160 213 213 213 213 160 160 160 160 160 162 160 160 160 160 160 Average Speed 176 | 156 160 160 193 213 213 213 213 162 160 160 160 160 186 160 160 160 160 162 Slowest Speed 1000 | 160 160 160 320 220 213 213 213 210 160 160 160 160 200 163 160 160 160 1000 Overloaded Moves . | . . . . . . . . . . . . . . . . . . . Propulsion Burnouts . | . . . . . . . . . . . . . . . . . . . Robots Hopped . | . . . . . . . . . . . . . . . . . . . Potential Cave-ins . | . . . . . . . . . . . . . . . . . . . Cave-ins Triggered . | . . . . . . . . . . . . . . . . . . . Exploration Rate (%) 58 | 5 97 82 98 84 61 79 62 18 8 55 98 57 4 83 7 73 51 83 Regions Visited 18 Branch Regions 10 Pre-discovered Areas 11 | . . 2 1 1 1 . . . . . 5 . . . . 1 . . Known Exits Taken 6 | . . 1 1 . . 1 . 1 1 . 1 . . . . . . . Unknown Exits Taken 9 | 1 1 . . 1 1 . 1 . . . . 1 . . 1 1 1 . Scrap Searched 11 | . . 3 . 1 . 1 . . . . . 2 . . . 3 1 . Spaces Dug 12 | . . . 3 1 . . 1 . . . . . 5 . . 2 . . Terrain Destroyed 72 | . . 25 7 1 . . 1 . . . . . 5 . . 2 . 31 Melee 5 | . . . 3 1 . . 1 . . . . . . . . . . . Projectile 8 | . . . . . . . . . . . . . . . . 2 . 6 AOE 59 | . . 25 4 . . . . . . . . . 5 . . . . 25 Terrain Rammed . | . . . . . . . . . . . . . . . . . . . Walls Destroyed . | . . . . . . . . . . . . . . . . . . . Machines Disabled . | . . . . . . . . . . . . . . . . . . . Actions | -11 -10 -10 -9 -9 -9 -8 -8 -7 -7 -7 -7 -7 -5 -5 -5 -5 -5 -5 --------- Run | Yrd Mat Min Mat Min Exi Min Mat Fac Sto Gar Rec Scr Fac Was Fac Upp Upp War Total 10357 | 122 987 563 1626 660 226 489 857 713 25 518 752 758 137 130 207 315 306 966 Wait 468 | 2 89 . 149 14 7 20 116 3 . 8 17 16 4 2 12 6 1 2 Move 8900 | 99 781 523 1303 594 217 446 615 657 25 453 648 741 123 78 186 292 294 825 Hop . | . . . . . . . . . . . . . . . . . . . Pick Up 94 | 3 20 4 22 5 1 1 14 5 . . 2 1 2 4 3 2 1 4 Fast Attach 19 | 7 2 . 3 1 . . 1 . . . . . . 2 . . . 3 Attach 41 | . 1 1 4 2 . . 3 2 . 1 5 . 4 . . 1 2 15 Detach 2 | . . . . . . . . . . . 1 . . 1 . . . . Swap 109 | 3 8 7 26 4 . . 11 11 . 9 1 . 3 5 3 4 4 10 Drop 94 | 1 12 3 23 6 1 1 16 9 . 4 . . . 11 2 1 1 3 Fire 490 | 7 62 18 76 24 . 9 71 20 . 42 19 . 1 27 . 9 2 103 Melee 9 | . . . 7 1 . . 1 . . . . . . . . . . . Ram . | . . . . . . . . . . . . . . . . . . . Kick . | . . . . . . . . . . . . . . . . . . . Crush 69 | . 12 6 13 9 . 12 9 6 . . 1 . . . 1 . . . Escape Stasis 1 | . . . . . . . . . . 1 . . . . . . . . Rewire 58 | . . . . . . . . . . . 58 . . . . . . . Trap 3 | . . 1 . . . . . . . . . . . . . . 1 1 Miscellaneous . | . . . . . . . . . . . . . . . . . . . Route ------- -11/Scrapyard -10/Materials (discovered 5 exits: *Mat x3 / [*Min] / *Sub) -10/Mines (discovered 3 exits: *Mat x2 / Sub) -9/Materials (discovered 4 exits: *Mat x3 / *Min) -9/Mines (discovered 3 exits: *Mat x2 / *Exi) -9/Exiles (discovered 2 exits: [*Min x2]) -8/Mines -8/Materials (discovered 2 exits: *Fac x2) -7/Factory (discovered 4 exits: *Sto x2 / Low x2) -7/Storage (discovered 3 exits: Fac / Rec / Gar) -7/Garrison (discovered 3 exits: *Rec x3) -7/Recycling (discovered 2 exits: [*Fac] / *Scr) -7/Scraptown -5/Factory -5/Waste -5/Factory -5/Upper Caves -5/Upper Caves (discovered 2 exits: [*Fac] / *War) -5/Warlord (discovered 1 exit: [*Pro]) History --------- Turn | Location | Event 2 | -11/Scrapyard | Met Revision 17 12 | -11/Scrapyard | Discovered new exit (range 13) 198 | -11/Scrapyard | Entered Materials 318 | -10/Materials | Build established: Mutant 503 | -10/Materials | Discovered new exit (range 12) 659 | -10/Materials | Discovered new exit (range 13) 1064 | -10/Materials | Discovered new exit (range 12) 1206 | -10/Materials | Discovered new exit (range 15) 1325 | -10/Materials | Learned Storage trap positions 1407 | -10/Materials | Identified exit to Materials 1407 | -10/Materials | Learned location of 1 exit from Materials 1480 | -10/Materials | Learned location of 1 exit from Storage 1497 | -10/Materials | Repaired Lgt. Treads 1524 | -10/Materials | Repaired Lgt. Treads 1638 | -10/Materials | Learned location of 2 exits from Mines 1690 | -10/Materials | Learned Storage emergency access door positions 1783 | -10/Materials | Entered Mines 1784 | -10/Mines | Identified exit to Subcaves 1860 | -10/Mines | Received a Rocket Launcher from a helpful Derelict 1866 | -10/Mines | Core integrity fell below 50% 2165 | -10/Mines | Learned location of Zion (-6) 2178 | -10/Mines | Found a damaged Exp. Sensor Array with a note attached 2182 | -10/Mines | Found Prototype Device 2304 | -10/Mines | Found a hidden stash of uninstalled traps 2659 | -10/Mines | Discovered exit to Materials (range 13) 2666 | -10/Mines | Learned location of Storage (-7) 2699 | -10/Mines | Entered Materials 2699 | -9/Materials | Evolved 2 slots: Propulsion x1, Weapon x1 2700 | -9/Materials | Identified exit to Materials 2914 | -9/Materials | Identified Exp. Sensor Array 2993 | -9/Materials | Build established: Gunner 3085 | -9/Materials | Repaired Faulty Exp. Sensor Array 3196 | -9/Materials | Discovered new exit (range 15) 3295 | -9/Materials | Destroyed 7 combat bots 3539 | -9/Materials | Central database locked down 3641 | -9/Materials | Build established: Scavenger-Tank 3955 | -9/Materials | Build established: Tank 4311 | -9/Materials | Discovered exit to Materials (range 15) 4734 | -9/Materials | Learned Storage trap positions 4779 | -9/Materials | Learned location of 1 exit from Storage 4827 | -9/Materials | Learned location of 1 exit from Recycling 5025 | -9/Materials | Identified exit to Mines 5737 | -9/Materials | Entered Mines 5738 | -9/Mines | Assembled infested the area 5752 | -9/Mines | Met a Derelict bent on vengeance 5773 | -9/Mines | Found the Drone Emporium 5775 | -9/Mines | Core integrity fell below 50% 5896 | -9/Mines | Found Prototype Device 5896 | -9/Mines | Identified Sensor Drone Bay 6035 | -9/Mines | Assisted by bots powering up and referring to "LRC-V3" 6150 | -9/Mines | A weapon hastily lodged in a ceiling crevice suddenly fell to the ground 6455 | -9/Mines | Met a Derelict shopkeep closing up shop 6647 | -9/Mines | Deemed a non-threat by the Exiles lab entrance 6894 | -9/Mines | Discovered exit to Materials (range 9) 6930 | -9/Mines | Discovered exit to Materials (range 5) 6931 | -9/Mines | Received a Mining Laser from a helpful Derelict 7124 | -9/Mines | Discovered new exit (range 5) 7134 | -9/Mines | Entered Exiles 7134 | -9/Exiles | Accompanied by 2 allies 7166 | -9/Exiles | Discovered new exit (range 15) 7186 | -9/Exiles | Met 8R-AWN 7222 | -9/Exiles | Met EX-HEX 7294 | -9/Exiles | Met EX-BIN 7320 | -9/Exiles | Aligned with FarCom system 7322 | -9/Exiles | Given EX-Vault access code 7375 | -9/Exiles | Opened EX-Vault 7395 | -9/Exiles | Found Field Lobotomy Kit 7434 | -9/Exiles | Warned to stay clear of 0b10 Research branches 7500 | -9/Exiles | Met EX-DEC 7575 | -9/Exiles | Discovered new exit (range 12) 7605 | -9/Exiles | Left Exiles lab with Field Lobotomy Kit 7605 | -9/Exiles | Entered Mines 7605 | -8/Mines | Accompanied by 1 ally 7710 | -8/Mines | Discovered exit to Materials (range 5) 7909 | -8/Mines | Build established: Skirmisher 8632 | -8/Mines | Entered Materials 8632 | -8/Materials | Evolved 2 slots: Utility x1, Weapon x1 9255 | -8/Materials | Garrison activated, responded to threat 9300 | -8/Materials | Destroyed 7 combat bots 9306 | -8/Materials | Discovered new exit (range 12) 9815 | -8/Materials | Garrison activated, responded to threat 10106 | -8/Materials | Repaired Imp. Treads 10133 | -8/Materials | Discovered new exit (range 10) 10232 | -8/Materials | First assault squad dispatched 10264 | -8/Materials | Entered Factory 10264 | -7/Factory | Evolved 2 slots: Propulsion x1, Utility x1 11102 | -7/Factory | Identified exit to Storage 11102 | -7/Factory | Identified exit to Lower Caves 11407 | -7/Factory | Entered Storage 11408 | -7/Storage | Identified exit to Recycling 11408 | -7/Storage | Identified exit to Factory 11409 | -7/Storage | Loaded intel: 13 trap records 11446 | -7/Storage | Identified exit to Garrison 11447 | -7/Storage | Entered Garrison 11477 | -7/Garrison | Triggered checkpoint 11577 | -7/Garrison | Garrison Relay disabled 11655 | -7/Garrison | Triggered checkpoint 11715 | -7/Garrison | Destroyed 12 combat bots 11743 | -7/Garrison | Triggered checkpoint 11786 | -7/Garrison | Discovered exit to Recycling (range 15) 11843 | -7/Garrison | Triggered checkpoint 11890 | -7/Garrison | Garrison Relay disabled 11976 | -7/Garrison | Discovered exit to Recycling (range 9) 12043 | -7/Garrison | Triggered checkpoint 12105 | -7/Garrison | Garrison Relay disabled 12228 | -7/Garrison | Discovered exit to Recycling (range 9) 12274 | -7/Garrison | Entered Recycling 12275 | -7/Recycling | Identified exit to Scraptown 12329 | -7/Recycling | Lost 4 parts (1p1n1u1w) 12586 | -7/Recycling | Build established: Scavenger-Skirmisher 12924 | -7/Recycling | Discovered new exit (range 15) 13381 | -7/Recycling | Scanned before Scraplab entrance 13405 | -7/Recycling | Entered Scraplab 13410 | -7/Recycling | Build established: Commander-Skirmisher 13433 | -7/Recycling | Entered Scraptown 13433 | -7/Scraptown | Accompanied by 6 allies 13433 | -7/Scraptown | System corruption cleaned by C-Scrubber 13502 | -7/Scraptown | Visited Symbiants 13547 | -7/Scraptown | Visited Fellowship of the Rings 13574 | -7/Scraptown | Visited Comm Corps 13633 | -7/Scraptown | Visited Cave Peace 13718 | -7/Scraptown | Visited Awakened 13733 | -7/Scraptown | Build established: Commander-Gunner 13742 | -7/Scraptown | Visited Assassins FH 13763 | -7/Scraptown | Visited TADAMA 14287 | -7/Scraptown | Discovered new exit (range 7) 14636 | -7/Scraptown | Entered Factory 14636 | -5/Factory | Accompanied by 6 allies 14636 | -5/Factory | Evolved 4 slots: Power x1, Utility x3 14872 | -5/Factory | Discovered new exit (range 15) 14880 | -5/Factory | Sucked down chute 14880 | -5/Factory | Entered Waste 14892 | -5/Waste | Found Prototype Processor 14894 | -5/Waste | Spotted C-40 Crusher 14895 | -5/Waste | EMP discharged 14895 | -5/Waste | System corruption reached 10% 14906 | -5/Waste | Destroyed C-40 Crusher 14922 | -5/Waste | Spotted C-40 Crusher 14934 | -5/Waste | Spotted C-40 Crusher 14935 | -5/Waste | Allies destroyed C-40 Crusher 14939 | -5/Waste | Spotted C-40 Crusher 14940 | -5/Waste | Allies destroyed C-40 Crusher 14943 | -5/Waste | Spotted C-40 Crusher 14953 | -5/Waste | Destroyed C-40 Crusher 14968 | -5/Waste | Spotted C-40 Crusher 14969 | -5/Waste | Destroyed C-40 Crusher 14975 | -5/Waste | 6 allies followed down the chute 14982 | -5/Waste | Allies destroyed C-40 Crusher 14995 | -5/Waste | EMP discharged 14998 | -5/Waste | Lost 3 allies 15049 | -5/Waste | Discovered new exit (range 12) 15069 | -5/Waste | Entered Factory 15069 | -5/Factory | Accompanied by 3 allies 15069 | -5/Factory | Identified Exp. Armor Integrity Analyzer 15212 | -5/Factory | Build established: Scavenger-Tank 15264 | -5/Factory | Discovered new exit (range 7) 15389 | -5/Factory | Entered Upper Caves 15389 | -5/Upper Caves | Accompanied by 3 allies 15395 | -5/Upper Caves | Met a Warlord Commander 15396 | -5/Upper Caves | Learned location of Warlord (-5) 15397 | -5/Upper Caves | Warlord Commander delivered Encrypted Comm Array 15400 | -5/Upper Caves | Found Encrypted Comm Array 15593 | -5/Upper Caves | Build established: Scavenger-Gunner 15659 | -5/Upper Caves | Spotted B-75 Beast 15765 | -5/Upper Caves | Encountered a Warlord checkpoint 15770 | -5/Upper Caves | Learned Factory emergency access door positions 15864 | -5/Upper Caves | Discovered new exit (range 15) 15887 | -5/Upper Caves | Entered another Upper Caves area 15887 | -5/Upper Caves | Accompanied by 1 ally 15908 | -5/Upper Caves | Encountered a Warlord checkpoint 15937 | -5/Upper Caves | Found DCF Scrap (13 items) 15965 | -5/Upper Caves | Discovered new exit (range 5) 15967 | -5/Upper Caves | Learned Factory security intel 16287 | -5/Upper Caves | Build established: Scavenger-Tank 16359 | -5/Upper Caves | Discovered new exit (range 7) 16373 | -5/Upper Caves | Entered Warlord 16373 | -5/Warlord | Accompanied by 1 ally 16431 | -5/Warlord | System corruption cleaned by Quarantine Array 16463 | -5/Warlord | Discovered new exit (range 15) 17133 | -5/Warlord | Warlord's base attacked by MAIN.C 17233 | -5/Warlord | Found Prototype Energy Cannon 17290 | -5/Warlord | Found Prototype Special Weapon 17409 | -5/Warlord | Spotted B-75 Beast 17473 | -5/Warlord | Spotted B-86 Titan 17483 | -5/Warlord | Warlord forces counterattacked 17483 | -5/Warlord | Lost 11 allies 17544 | -5/Warlord | Met Warlord 17605 | -5/Warlord | Spotted Striker 17606 | -5/Warlord | P-80 Master assimilated allied IN-O72(M) 17609 | -5/Warlord | Assimilated Striker with FLK Orb 17648 | -5/Warlord | Spotted Striker 17655 | -5/Warlord | Destroyed Striker 17699 | -5/Warlord | Spotted Executioner 17702 | -5/Warlord | Assimilated Executioner with FLK Orb 17738 | -5/Warlord | Destroyed 12 combat bots 17776 | -5/Warlord | Spotted Executioner 17788 | -5/Warlord | Assimilated Executioner with FLK Orb 17789 | -5/Warlord | Spotted Executioner 17794 | -5/Warlord | Assimilated Executioner with FLK Orb 17803 | -5/Warlord | Spotted Striker 17808 | -5/Warlord | Warlord base infiltrated, sounded retreat 17813 | -5/Warlord | Spotted Executioner 17813 | -5/Warlord | Identified RU-N14's Throwing Claymores v3 17817 | -5/Warlord | Destroyed Executioner 17822 | -5/Warlord | P-70 Sage assimilated allied GZ-2JO(c) 17837 | -5/Warlord | Spotted Executioner 17838 | -5/Warlord | Destroyed 7 combat bots 17873 | -5/Warlord | Destroyed Executioner 17881 | -5/Warlord | Lost 9 allies 17883 | -5/Warlord | Core integrity fell below 50% 17884 | -5/Warlord | Identified Vortex Cannon 17912 | -5/Warlord | Spotted Striker 17915 | -5/Warlord | Lost 21 parts (3p4n6u8w) 17921 | -5/Warlord | Destroyed 8 combat bots 17943 | -5/Warlord | Core integrity fell below 20% 17955 | -5/Warlord | Destroyed by Striker with Plasma Lance Last Messages --------------- 17935_ System corrupted: Adv. Assault Cannon+ jammed. 17936_ System corrupted: FCS attempts to trigger Adv. Assault Cannon+. 17936_ System corrupted: Adv. Assault Cannon+ misfires. 17936_ Critical hit (Impale). 17936_ P-70 Sage resets Striker, system corruption cleaned. 17939_ System corrupted: Adv. Assault Cannon+ jammed. 17940_ Sensor Drone released from Sensor Drone Bay. 17940_ The unstable cave ceiling collapses. 17941_ Sensor Drone released from Sensor Drone Bay. 17941_ Striker Prototype Device blasted off. 17941_ Striker knocked back. 17942_ Sensor Drone released from Sensor Drone Bay. 17942_ Sensor Drone destroyed. 17943_ Sensor Drone released from Sensor Drone Bay. 17943_ Striker knocked back. 17944_ Sensor Drone released from Sensor Drone Bay. 17947_ Adv. Assault Cannon+ destroyed. 17948_ Sensor Drone released from Sensor Drone Bay. 17950_ Core Analyzer destroyed. 17951_ Sensor Drone released from Sensor Drone Bay. Map ----- +----------------------------------------------------+ | #?????" #### #??????????????????? | | ??????" ???# ###### ???????????? | | ??????"""""""" ????# "?? ??????? | | ??????????#### ????# """ """ ?? | | ?????????????###?????# #? | | ??###########????????# ########### g #? | | ??# #????????# #???????????? Y #? | | ??# #????????# ##############?? #? | | ??# #????????# ## #??# #? | | ??# #????????# ## #### #? | | ######+##+############+# + # ?? | | + " # #? """" # ??? | | # #######; # #? """"" # !##### | | # #??????# # + " " [=%=!# | | # ^^#??????# ; # # ![[]gg | | # ^^#??????# # ####;; # # = %!g% | | # ######## #! ^ % = ![/=== | | # ; [%= %= =% *% =%==*%! | | # # ######### # =nn= [%== [] !]==%=%% | | # ###???????# nnn n%%![ =b ==!%*[! | | ### #?????????#####+#; # nn* n b !=%= = | | ??# #????????????## n[ | | ### #??????????###; n = ! | | #??????#####; ; [ nnn%[*%* ;;# # ## | | #??????#& ;#; np #=*"[ ; %#???? | | " #??????#& # @K % ! "" # # #? | | " #??????# ; =p % """ # # #?? | | " #??????# # !!! % = g ### #??? | | #########+###=! ! %%% ######g## # #??? | | g =!*%[! =* #???#g #??? | | ## cg % |% ##???# g % #??? | | # g [%* ##????# #??? | | + E %* #?????# " #??? | | ##############; ! ;#?????# "" ##### | | #????????????## ;#?????# "" # | | #?????????????# ;#?????# """ # | | #????????????# ;#######% # | | ##????????###?# ! # | | ###########X### # | | ^^""" """ + | | ^^ """ """ # | | ^^ """ """ # | | ################# "" """ # | | ############????###+######### """ """ # | | """""""#?????## ###?????# + | | """"#?????# #?????# ##+## | | ]""""#?????# #?????#+###+######## # | | """ #?????# #?????# #??# # | | #?????# ||#?????# #??# + | | " #?????# |||#?????# #### #### | +----------------------------------------------------+ Best States ------------- Heat Dissipation 67 Energy Generation 37 Energy Capacity 550 Matter Stores 300 Matter Capacity 300 Sight Range 16 Terrain Scan Range 16 Terrain Scan Density 10 Armor Coverage 375 Weapon Shielding 33 Weapon Cycling 15 Evasion (%) 40 Targeting Accuracy 8 Core Analysis 6 Recoil Reduction 4 Item Schematics ----------------- None Robot Schematics ------------------ None Fabricated ------------ Nothing Repaired ---------- Lgt. Treads | 19% | -10/Materials Lgt. Treads | 57% | -10/Materials Exp. Sensor Array | 62% | -9/Materials | Broken Imp. Treads | 16% | -8/Materials Studied --------- Lgt. Treads | -9/Materials | Hacked Gauss Rifle | -7/Factory | Hacked Adv. Assault Cannon | -5/Factory | Hacked Alien Tech Used ----------------- None Achievements -------------- Civilization 2243 Plot Armor Tune-up Challenges ------------ None Game ------ Seed ActiveJunkMeganuke Manual? 0 Play Time 01:40:15 Cumulative 195.7 hours Start 2025.10.27 @ 19:32:54 End 2025.10.27 @ 21:10:56 Sessions 1 Manual Loads 0 Difficulty Rogue Special Mode None Game No. 168 Rogue 168 Adventurer 0 Explorer 0 Win Type - Total 3 Types 2/0/0/1/0/0/0/0/0/0 Lore% 74 Gallery% 65 Achievement% 42 Wizard Run 0 Options --------- Layout 0 ASCII 0 Keyboard 1 Movement Numpad Keybinds 0 Fullscreen 1 Font 24/Terminus Map View 76x50 Zoom Use 0% Tactical HUD 1 Map Filters NONE Filters NONE Steam 1 RUN: 4a3455bb-cc10-4d7a-a43d-73332035ec44